[Event "CZE-ch U14 Open 2023"]
[Site "Teplice"]
[Date "2023.03.12"]
[Round "2.9"]
[White "Dusanek, Michal"]
[Black "Jasso, Matej"]
[Result "0-1"]
[ECO "D00"]
[WhiteElo "1624"]
[BlackElo "1934"]
[Annotator "TA"]
[PlyCount "54"]
[EventDate "2023.03.09"]
[EventType "swiss"]
[EventCountry "CZE"]
[SourceTitle "playchess.com"]
[Source "ChessBase"]
[SourceQuality "1"]
[TimeControl "40/5400+30:1800+30"]

{[%evp 9,54,0,0,-8,116,116,113,107,132,128,125,122,125,125,113,71,83,79,90,68,59,62,58,55,66,54,63,-41,-59,-87,-61,-87,-87,-58,0,-88,-89,-173,-178,-194,-204,-197,-198,-191,-186,-192,-185]} 1. d4 {[%emt 0:00:33]} d5 {[%emt 0:00:38]} 2. Bf4 {[%emt 0:00:55]} Nf6 {[%emt 0:00:32]} 3. e3 {[%emt 0:00:56]} c5 {[%emt 0:01:05]} 4. c3 {[%emt 0:00:26]} Nc6 {[%emt 0:01:00]} 5. Nd2 {[%emt 0:00:53]} Bf5 {[%emt 0:04:32]} 6. Ngf3 {[%emt 0:05:11] D00: 1 d4 d5: Unusual lines.} h6 {[%emt 0:09:56]} (6... Qb6 $11 {keeps the balance.}) 7. dxc5 $16 {[%emt 0:08:14] [#]} Nd7 $146 {[%emt 0:09:07]} ({Predecessor:} 7... e6 8. b4 Be7 9. h3 O-O 10. Be2 Re8 11. O-O Bf8 12. Ne5 Nxe5 13. Bxe5 Nd7 {1-0 Gomez Ledo,R (2469)-Keller,P (2377) Titled Tuesday intern op 07th Jun Late blitz 2022 (7)}) 8. Nd4 {[%emt 0:03:06] White is better.} e5 {[%emt 0:14:01]} 9. Bxe5 {[%emt 0:04:00]} Bg6 {[%emt 0:12:34]} 10. Nxc6 {[%emt 0:18:33]} bxc6 {[%emt 0:00:09]} 11. Bd4 {[%emt 0:00:13] And now Qa4 would win.} Nxc5 {[%emt 0:00:15]} 12. b4 {[%emt 0:01:14]} Ne6 {[%emt 0:01:34]} 13. Ba6 {[%emt 0:09:04] aiming for Bb7.} Qd7 {[%emt 0:08:13] Against Bb7} 14. Qe2 {[%emt 0:02:02]} Bd6 {[%emt 0:01:15]} 15. O-O {[%emt 0:02:15]} O-O {[%emt 0:00:53]} 16. Nb3 {[%emt 0:01:19]} Rae8 {[%emt 0:01:56]} 17. Qd2 {[%emt 0:02:27]} Qe7 {[%emt 0:04:39]} 18. Na5 {[%emt 0:05:02]} ({White should play} 18. Bd3 $14) 18... Qc7 $1 $15 {[%emt 0:07:44] ...c5 is the strong threat.} ({Much less strong is} 18... Qh4 19. g3 (19. Nxc6 $2 Qxh2#) 19... Qd8 20. Nxc6 $16 (20. Bxa7 Qa8 $15)) 19. f4 {[%emt 0:24:54]} c5 {[%emt 0:02:30]} 20. Be5 {[%emt 0:01:12][%mdl 64] [#] Deflection} Bxe5 {[%emt 0:03:28]} 21. fxe5 {[%emt 0:00:09]} Qxe5 {[%emt 0:00:29]} (21... Ng5 $15 22. Qxd5 cxb4 23. cxb4 Qb6) 22. Nc6 {[%emt 0:01:38]} (22. Bb5 $11 {remains equal.}) 22... Qd6 $36 {[%emt 0:01:51][%mdl 2048] Keeping White busy.} 23. b5 {[%emt 0:01:15]} (23. Bb5 $17 {was worth a try.}) 23... Nc7 $19 {[%emt 0:01:22] [#] Threatens to win with ...Nxa6. Black is clearly better.} 24. Na5 {[%emt 0:05:52]} Nxa6 {[%emt 0:02:10]} 25. bxa6 {[%emt 0:00:08]} Qxa6 {[%emt 0:01:09]} 26. Nb3 {[%emt 0:00:18]} Qc6 {[%emt 0:01:04]} 27. Rac1 {[%emt 0:01:35]} Re5 {[%emt 0:01:02] Weighted Error Value: White=0.23 (precise) /Black=0.14 (very precise)} 0-1

[Event "CZE-ch U14 Open 2023"]
[Site "Teplice"]
[Date "2023.03.12"]
[Round "2.10"]
[White "Andrle, Filip"]
[Black "Srba, Daniel"]
[Result "1-0"]
[ECO "B27"]
[WhiteElo "1721"]
[BlackElo "1509"]
[Annotator "NA RC COMBH"]
[PlyCount "61"]
[EventDate "2023.03.09"]
[EventType "swiss"]
[EventCountry "CZE"]
[SourceTitle "playchess.com"]
[Source "ChessBase"]
[SourceQuality "1"]
[TimeControl "40/5400+30:1800+30"]

1. e4 {[%emt 0:00:06]} c5 {[%emt 0:00:10]} 2. Nf3 {[%emt 0:00:13]} g6 {[%emt 0:00:10]} 3. d4 {[%emt 0:00:08]} cxd4 {[%emt 0:00:04]} 4. Qxd4 {[%emt 0:00:38]} Nf6 {[%emt 0:00:05]} 5. Nc3 {[%emt 0:00:45]} Nc6 {[%emt 0:00:47]} 6. Qa4 {[%emt 0:00:34]} Bg7 {[%emt 0:01:19]} 7. e5 {[%emt 0:01:06]} Ng8 {[%emt 0:01:55]} 8. Bf4 {[%emt 0:01:56]} a6 {[%emt 0:03:39]} 9. Rd1 {[%emt 0:12:22]} Nh6 {[%emt 0:10:04]} 10. Be2 {[%emt 0:09:22]} O-O {[%emt 0:05:53]} 11. O-O {[%emt 0:05:43]} Ng4 {[%emt 0:11:11]} 12. Qe4 {[%emt 0:06:24]} f5 {[%emt 0:08:42]} 13. Bc4+ {[%emt 0:04:34]} e6 {[%emt 0:03:20]} 14. Qe2 {[%emt 0:01:38]} Qc7 {[%emt 0:04:05]} 15. Rfe1 {[%emt 0:04:50]} b5 {[%emt 0:05:33]} 16. Bb3 {[%emt 0:03:40]} Bb7 {[%emt 0:03:37]} 17. a3 {[%emt 0:04:26]} Na5 {[%emt 0:03:16]} 18. Rd3 {[%emt 0:10:37]} Rfd8 {[%emt 0:10:47]} 19. h3 {[%emt 0:08:14]} Nh6 {[%emt 0:00:26]} 20. Red1 {[%emt 0:02:02]} Bxf3 {[%emt 0:05:10]} 21. Qxf3 {[%emt 0:01:19]} Nc6 {[%emt 0:05:10]} 22. Rxd7 {[%emt 0:11:51]} Rxd7 {[%emt 0:01:42]} 23. Bxe6+ {[%emt 0:00:16]} Rf7 {[%emt 0:00:29]} 24. Rd7 {[%emt 0:01:59]} Qxd7 {[%emt 0:00:46]} 25. Bxd7 {[%emt 0:00:13]} Rxd7 {[%emt 0:00:04]} 26. Qxc6 {[%emt 0:00:12]} Rdd8 {[%emt 0:00:12]} 27. Nd5 {[%emt 0:02:45]} Kh8 {[%emt 0:02:00]} 28. c3 {[%emt 0:02:42]} Rac8 {[%emt 0:03:20]} 29. Qxa6 {[%emt 0:01:32]} Rc5 {[%emt 0:01:52]} 30. Bxh6 {[%emt 0:01:52]} Bxh6 {[%emt 0:00:25]} 31. Qf6+ {[%emt 0:00:22]} 1-0

[Event "CZE-ch U14 Open 2023"]
[Site "Teplice"]
[Date "2023.03.12"]
[Round "2.11"]
[White "Vlcek, Vojtech"]
[Black "Striz, Tadeas"]
[Result "1-0"]
[ECO "E21"]
[WhiteElo "1671"]
[BlackElo "1503"]
[Annotator "NA RC COMBH"]
[PlyCount "59"]
[EventDate "2023.03.09"]
[EventType "swiss"]
[EventCountry "CZE"]
[SourceTitle "playchess.com"]
[Source "ChessBase"]
[SourceQuality "1"]
[TimeControl "40/5400+30:1800+30"]

1. d4 {[%emt 0:00:13]} Nf6 {[%emt 0:00:10]} 2. c4 {[%emt 0:00:10]} e6 {[%emt 0:00:11]} 3. Nf3 {[%emt 0:00:04]} b6 {[%emt 0:00:17]} 4. Nc3 {[%emt 0:01:52]} Bb7 {[%emt 0:00:22]} 5. g3 {[%emt 0:02:57]} d5 {[%emt 0:02:08]} 6. Bg2 {[%emt 0:03:36]} Nbd7 {[%emt 0:03:24]} 7. cxd5 {[%emt 0:06:19]} exd5 {[%emt 0:00:24]} 8. O-O {[%emt 0:00:27]} Be7 {[%emt 0:03:10]} 9. b3 {[%emt 0:02:29]} O-O {[%emt 0:03:01]} 10. Bb2 {[%emt 0:01:43]} c5 {[%emt 0:06:42]} 11. dxc5 {[%emt 0:12:59]} bxc5 {[%emt 0:06:50]} 12. e3 {[%emt 0:01:41]} Nb6 {[%emt 0:10:07]} 13. Qe2 {[%emt 0:08:53]} Rc8 {[%emt 0:06:23]} 14. Rfd1 {[%emt 0:07:54]} Qc7 {[%emt 0:09:11]} 15. Rac1 {[%emt 0:03:16]} c4 {[%emt 0:07:48]} 16. Nb5 {[%emt 0:18:09]} Qd8 {[%emt 0:14:25]} 17. Bh3 {[%emt 0:04:36]} Rc5 {[%emt 0:04:16]} 18. Nfd4 {[%emt 0:00:25]} a6 {[%emt 0:06:16]} 19. Nc3 {[%emt 0:02:13]} Rc7 {[%emt 0:04:50]} 20. Qf1 {[%emt 0:14:29]} Bb4 {[%emt 0:05:36]} 21. Bf5 {[%emt 0:02:40]} Bc8 {[%emt 0:01:05]} 22. Bxc8 {[%emt 0:02:37]} Qxc8 {[%emt 0:00:04]} 23. Nde2 {[%emt 0:00:21]} Rd8 {[%emt 0:01:18]} 24. Qg2 {[%emt 0:00:48]} Qd7 {[%emt 0:02:10]} 25. e4 {[%emt 0:01:17]} Bxc3 {[%emt 0:00:28]} 26. Nxc3 {[%emt 0:00:08]} Qe7 {[%emt 0:00:45]} 27. exd5 {[%emt 0:00:19]} Nfxd5 {[%emt 0:00:28]} 28. Nxd5 {[%emt 0:00:12]} Nxd5 29. Rxd5 {[%emt 0:00:00]} Rxd5 {[%emt 0:02:38]} 30. Qxd5 1-0

[Event "CZE-ch U14 Open 2023"]
[Site "Teplice"]
[Date "2023.03.12"]
[Round "2.12"]
[White "Macosek, Alex"]
[Black "Tichy, Tomas"]
[Result "0-1"]
[ECO "A00"]
[WhiteElo "1466"]
[BlackElo "1810"]
[Annotator "NA RC COMBH"]
[PlyCount "84"]
[EventDate "2023.03.09"]
[EventType "swiss"]
[EventCountry "CZE"]
[SourceTitle "playchess.com"]
[Source "ChessBase"]
[SourceQuality "1"]
[TimeControl "40/5400+30:1800+30"]

1. g3 {[%emt 0:00:20]} d5 {[%emt 0:02:01]} 2. Bg2 {[%emt 0:01:04]} Nf6 {[%emt 0:01:38]} 3. d4 {[%emt 0:01:41]} c5 {[%emt 0:03:27]} 4. c3 {[%emt 0:03:00]} e6 {[%emt 0:01:15]} 5. Nf3 {[%emt 0:03:13]} Nc6 {[%emt 0:00:57]} 6. Nbd2 {[%emt 0:03:01]} Bd6 {[%emt 0:03:28]} 7. O-O {[%emt 0:01:39]} O-O {[%emt 0:00:49]} 8. e3 {[%emt 0:01:10]} e5 {[%emt 0:14:05]} 9. dxc5 {[%emt 0:06:56]} Bxc5 {[%emt 0:00:39]} 10. c4 {[%emt 0:00:54]} Be6 {[%emt 0:13:30]} 11. Ng5 {[%emt 0:03:40]} Bg4 {[%emt 0:02:52]} 12. Qb3 {[%emt 0:04:21]} d4 {[%emt 0:14:34]} 13. Nde4 {[%emt 0:05:54]} Nxe4 {[%emt 0:10:56]} 14. Nxe4 {[%emt 0:00:23]} Bb6 {[%emt 0:01:29]} 15. c5 {[%emt 0:02:34]} Be6 {[%emt 0:00:43]} 16. Qb5 {[%emt 0:00:54]} Bc7 {[%emt 0:01:29]} 17. b3 {[%emt 0:24:50]} f5 {[%emt 0:05:54]} 18. Ng5 {[%emt 0:02:28]} Bd7 {[%emt 0:02:56]} 19. Bd5+ {[%emt 0:00:39]} Kh8 {[%emt 0:00:25]} 20. Nf7+ {[%emt 0:01:15]} Rxf7 {[%emt 0:00:09]} 21. Bxf7 {[%emt 0:00:05]} a6 {[%emt 0:06:32]} 22. Qe2 {[%emt 0:01:51]} Qf6 {[%emt 0:02:15]} 23. Bc4 {[%emt 0:01:55]} e4 {[%emt 0:01:43]} 24. Rb1 {[%emt 0:06:11]} d3 {[%emt 0:00:37]} 25. Qh5 {[%emt 0:03:27]} Be8 {[%emt 0:03:43]} 26. Qh3 {[%emt 0:03:07]} Ne5 {[%emt 0:00:36]} 27. Bb2 {[%emt 0:01:13]} Nf3+ {[%emt 0:00:29]} 28. Kg2 {[%emt 0:00:46]} Be5 {[%emt 0:00:24]} 29. Bxe5 {[%emt 0:00:34]} Qxe5 {[%emt 0:00:12]} 30. Rfd1 {[%emt 0:01:12]} Rd8 {[%emt 0:01:36]} 31. g4 {[%emt 0:01:50]} fxg4 {[%emt 0:01:09]} 32. Qg3 {[%emt 0:00:08]} Qxg3+ {[%emt 0:01:00]} 33. Kxg3 {[%emt 0:00:10]} h5 {[%emt 0:00:31]} 34. h3 {[%emt 0:01:03]} Bd7 {[%emt 0:01:26]} 35. hxg4 {[%emt 0:01:34]} Bxg4 {[%emt 0:00:28]} 36. Bf7 {[%emt 0:00:52]} Ne5 {[%emt 0:00:54]} 37. Bxh5 {[%emt 0:00:57]} Bxh5 {[%emt 0:00:34]} 38. Rh1 {[%emt 0:00:08]} g6 {[%emt 0:00:05]} 39. Kf4 {[%emt 0:00:47]} Ng4 {[%emt 0:00:16]} 40. f3 {[%emt 0:01:16]} exf3 {[%emt 0:00:50]} 41. Rbg1 {[%emt 0:31:49]} Rf8+ {[%emt 0:02:21]} 42. Ke4 {[%emt 0:00:00]} Nf2+ {[%emt 0:00:20]} 0-1

[Event "CZE-ch U14 Open 2023"]
[Site "Teplice"]
[Date "2023.03.13"]
[Round "3.1"]
[White "Juhanak, Daniel"]
[Black "Hrbek, Jachym"]
[Result "1-0"]
[ECO "D30"]
[WhiteElo "1952"]
[BlackElo "1824"]
[Annotator "TA"]
[PlyCount "47"]
[EventDate "2023.03.09"]
[EventType "swiss"]
[EventCountry "CZE"]
[SourceTitle "playchess.com"]
[Source "ChessBase"]
[SourceQuality "1"]
[TimeControl "40/5400+30:1800+30"]

{[%evp 13,47,-30,-27,-30,-10,-28,-18,-15,-12,-52,-48,-45,-48,-58,-60,-127,-81,-83,79,79,110,109,159,166,165,172,219,177,337,355,733,737,730,633,29998,29999]} 1. d4 {[%emt 0:00:01]} d5 {[%emt 0:00:08]} 2. c4 {[%emt 0:00:01]} e6 {[%emt 0:00:08]} 3. Nf3 {[%emt 0:00:23]} c6 {[%emt 0:00:07]} 4. g3 {[%emt 0:03:34]} dxc4 {[%emt 0:00:28]} 5. Bg2 {[%emt 0:01:22]} b5 {[%emt 0:00:32]} 6. O-O {[%emt 0:11:54]} Bb7 {[%emt 0:01:34]} 7. Nc3 {[%emt 0:04:35]} Nf6 {[%emt 0:02:29]} 8. Bg5 {[%emt 0:02:29] E04: Open Catalan: 5 Nf3.} Be7 {[%emt 0:10:12]} 9. Bxf6 {[%emt 0:08:36]} Bxf6 {[%emt 0:00:38]} 10. Ne5 {[%emt 0:05:28] The position is equal.} a6 {[%emt 0:05:24]} 11. a4 {[%emt 0:07:24]} Qc7 {[%emt 0:08:38]} 12. Ne4 {[%emt 0:03:44] [#]} Be7 $146 {[%emt 0:02:35]} ({Predecessor:} 12... c5 13. Nxf6+ gxf6 14. Bxb7 Qxb7 15. Ng4 Nd7 16. dxc5 O-O-O 17. Qc2 h5 18. Ne3 Nxc5 19. axb5 axb5 {1-0 Francisco,R (2281)-Jacobson,A (2301) Charlotte CCCSA Fall IM 2019 (4)}) 13. b3 {[%emt 0:05:04]} f5 $1 {[%emt 0:05:50]} 14. Nc3 {[%emt 0:05:52] [#]} (14. e3 $15 O-O 15. Nc3) 14... b4 $1 $17 {[%emt 0:04:47]} 15. e4 {[%emt 0:05:30] [#] Strongly threatening Qh5+.} O-O $2 {[%emt 0:14:25]} (15... bxc3 16. Qh5+ Kd8 17. Nf7+ Kc8 18. Nxh8 cxb3 19. Qxh7 $16) (15... Nd7 $1 $17 {[%cal Rd7e5] stays on course.} 16. Ne2 (16. Qh5+ g6 $17) 16... Nxe5) 16. Ne2 $16 {[%emt 0:01:26] Excellent horsemanship.} c3 {[%emt 0:00:16]} ({Not} 16... c5 17. Nf4 Rf6 18. Nxc4 (18. bxc4 cxd4 19. Qxd4 Bc5 $15) 18... cxd4 19. exf5 (19. Qxd4 Nd7 $14) (19. e5 Rh6 $14) 19... Bxg2 20. Kxg2 $16) 17. Nf4 {[%emt 0:02:12]} Rf6 {[%emt 0:05:09]} ({Black should try} 17... Bc8) 18. exf5 {[%emt 0:05:17] White is more active.} exf5 {[%emt 0:01:16]} 19. Qe2 $36 {[%emt 0:01:46][%mdl 2048] Keeping Black busy.} Bd6 {[%emt 0:07:36]} (19... Nd7 $142) 20. Rfe1 {[%emt 0:03:16] And now Qc4+ would win.} a5 $2 {[%emt 0:09:18]} (20... Nd7) 21. Qc4+ $18 {[%emt 0:00:45]} Kf8 $2 {[%emt 0:01:47]} (21... Rf7 22. Ne6 (22. Qxf7+ Qxf7 23. Nxf7 Kxf7 $14) 22... Qe7) 22. Ne6+ {[%emt 0:00:31]} Rxe6 {[%emt 0:00:15]} 23. Qxe6 {[%emt 0:00:33][%cal Oe5g6] Intending Ng6+! and mate.} Bc8 {[%emt 0:00:20] [#]} 24. Ng6+ $1 {[%emt 0:00:19][%mdl 576] Back Rank. Excellently played by Juhanak!   Weighted Error Value: White=0.14 (very precise) /Black=0.57} 1-0

[Event "CZE-ch U14 Open 2023"]
[Site "Teplice"]
[Date "2023.03.13"]
[Round "3.2"]
[White "Topencik, Bruno"]
[Black "Martirosyan, David"]
[Result "0-1"]
[ECO "D30"]
[WhiteElo "1844"]
[BlackElo "1975"]
[Annotator "TA"]
[PlyCount "116"]
[EventDate "2023.03.09"]
[EventType "swiss"]
[EventCountry "CZE"]
[SourceTitle "playchess.com"]
[Source "ChessBase"]
[SourceQuality "1"]
[TimeControl "40/5400+30:1800+30"]

{[%evp 9,116,5,18,-27,-27,-27,-25,-31,-25,-39,-20,-15,-15,-34,-31,-27,-12,0,0,-4,-2,-6,-7,-22,-17,-32,-28,-83,-62,-70,-70,-86,-88,-94,-90,-116,-116,-114,-95,-95,-91,-93,-91,-105,-89,-93,-81,-127,-81,-75,-28,-32,-22,-23,0,0,0,-214,-214,-214,-216,-216,-216,-350,-351,-351,-351,-375,-223,-412,-298,-419,-228,-517,-487,-464,-412,-498,-412,-1198,-1158,-1045,-985,-842,-420,-1880,-420,-29975,-29976,-29975,-29976,-29975,-29976,-29978,-29979,-29979,-29980,-29980,-29981,-29981,-29982,-29983,-29984,-29985,-29986,-29986,-29987,-29988,-29989]} 1. d4 {[%emt 0:00:04]} d5 {[%emt 0:00:11]} 2. c4 {[%emt 0:00:06]} e6 {[%emt 0:00:20]} 3. Nf3 {[%emt 0:00:08]} a6 {[%emt 0:00:35]} 4. e3 {[%emt 0:06:33]} Nf6 {[%emt 0:01:35]} 5. Nc3 {[%emt 0:00:18]} Be7 {[%emt 0:01:52]} 6. Bd3 {[%emt 0:00:58] D30: Queen's Gambit Declined: Systems without Nc3.} dxc4 $1 {[%emt 0:00:21]} 7. Bxc4 {[%emt 0:00:28]} b5 {[%emt 0:00:15]} 8. Bd3 {[%emt 0:01:28] Black has an edge.} Bb7 {[%emt 0:00:48]} 9. O-O {[%emt 0:02:37]} O-O {[%emt 0:00:46]} 10. Qc2 {[%emt 0:03:01]} h6 {[%emt 0:02:41]} 11. Bd2 {[%emt 0:04:05]} Nbd7 {[%emt 0:00:36]} 12. Ne4 {[%emt 0:10:55] [#]} Nxe4 $146 {[%emt 0:06:20]} (12... c5 $5) ({Predecessor:} 12... Rc8 13. Ba5 Qe8 14. Nc5 Nxc5 15. dxc5 Bxf3 16. gxf3 Qc6 17. f4 Qf3 18. Be2 Qh3 {½-½ Cemeris,I (1353)-Bosikis,T (1251) Panevezys Gigant op-B 2017 (6)}) 13. Bxe4 {[%emt 0:00:23]} Bxe4 {[%emt 0:00:38]} 14. Qxe4 {[%emt 0:00:12]} c5 {[%emt 0:00:08]} 15. Rac1 {[%emt 0:02:54]} Qb6 {[%emt 0:03:33]} 16. Rfd1 {[%emt 0:05:23]} Rac8 {[%emt 0:01:27]} 17. Bc3 {[%emt 0:12:18]} c4 {[%emt 0:06:23]} 18. d5 {[%emt 0:06:56]} (18. a3 $11) 18... Nf6 $17 {[%emt 0:01:19]} 19. Bxf6 {[%emt 0:02:25]} Bxf6 {[%emt 0:00:04]} 20. Qc2 {[%emt 0:04:13]} exd5 {[%emt 0:03:13]} 21. Rxd5 {[%emt 0:02:29]} Rfd8 {[%emt 0:00:13]} 22. Rcd1 {[%emt 0:01:22]} Rxd5 {[%emt 0:00:40]} 23. Rxd5 {[%emt 0:00:06]} Qc6 {[%emt 0:00:38]} 24. Rd1 {[%emt 0:02:32]} b4 {[%emt 0:02:42]} 25. h3 {[%emt 0:03:03]} c3 {[%emt 0:02:42]} 26. Nd4 {[%emt 0:00:59]} Bxd4 {[%emt 0:02:36]} 27. Rxd4 {[%emt 0:00:09][%mdl 4096] Endgame KQR-KQR} a5 {[%emt 0:00:30]} 28. Kh2 {[%emt 0:04:57]} (28. bxc3 $142 bxc3 29. Rd1) 28... cxb2 {[%emt 0:10:37] Black is more active.} (28... a4 $142 29. bxc3 bxc3) 29. Qxb2 {[%emt 0:00:39]} Qc2 {[%emt 0:03:04]} (29... Qc7+ $17 30. g3 Qc2 31. Rd8+ Kh7) 30. Qb3 $1 $11 {[%emt 0:04:36][%cal Od4d8]} Qxb3 {[%emt 0:10:22]} (30... Qxf2 $5 31. Rf4 $8 Qc2 32. Qxf7+ Kh7 $11) 31. axb3 $15 {[%emt 0:00:08] KR-KR} Rc2 {[%emt 0:02:27]} 32. Rd8+ {[%emt 0:01:09]} Kh7 {[%emt 0:00:17]} 33. Ra8 $2 {[%emt 0:00:11] White is on the road to losing.} (33. Kg3 $11) 33... Rxf2 $19 {[%emt 0:01:12] And now ...Re2 would win.} 34. Rxa5 {[%emt 0:00:33]} Rb2 {[%emt 0:00:24]} 35. Rb5 {[%emt 0:01:10]} Rxb3 {[%emt 0:00:07]} 36. Kg1 {[%emt 0:00:39]} (36. Rb6 $142) 36... Rb1+ {[%emt 0:00:44]} ({Worse is} 36... Rxe3 37. Rxb4 g6 38. Kf2 $17) 37. Kf2 {[%emt 0:00:17]} b3 {[%emt 0:00:16]} 38. Kf3 {[%emt 0:00:42]} Kg6 {[%emt 0:00:35]} (38... b2 $142 {...Rf1+ would be deadly.} 39. Ke4 Kg6) 39. Kg3 $2 {[%emt 0:01:05]} (39. h4) 39... Kf6 {[%emt 0:00:26]} 40. Rb7 {[%emt 0:00:35]} (40. Kf4 $142) 40... g6 {[%emt 0:01:29]} (40... b2 $142 {Strongly threatening ...g5.} 41. Rb5 Ke7) 41. Kh2 $2 {[%emt 0:30:53]} (41. Kf4 {was forced.}) 41... Ke6 {[%emt 0:30:15]} 42. Kg3 {[%emt 0:00:27]} f6 {[%emt 0:02:01]} 43. Rb6+ {[%emt 0:00:40]} Ke5 {[%emt 0:00:14] Hoping for ...Kd5.} 44. Rb5+ {[%emt 0:00:27]} (44. h4 $142) 44... Ke4 {[%emt 0:01:58]} 45. Rb6 {[%emt 0:00:24]} b2 {[%emt 0:05:18]} 46. Rb3 {[%emt 0:02:32]} h5 {[%emt 0:05:32]} (46... Kd5 $142 47. Kf2 h5) 47. h4 {[%emt 0:00:00]} (47. Kh4 $142) 47... g5 {[%emt 0:00:00]} 48. Kh2 {[%emt 0:06:44]} (48. hxg5 $19 fxg5 49. Kf2) 48... gxh4 {[%emt 0:00:00] Black mates.} 49. Rb6 {[%emt 0:00:12]} Kxe3 {[%emt 0:00:00]} 50. Re6+ {[%emt 0:00:09]} Kd4 {[%emt 0:00:00]} 51. Rb6 {[%emt 0:00:06]} f5 {[%emt 0:00:00][%cal Bf6f5,Bf5f4][%mdl 32]} 52. Rb8 {[%emt 0:00:05]} f4 {[%emt 0:00:00]} 53. Rd8+ {[%emt 0:00:52]} Ke5 {[%emt 0:00:00]} 54. Re8+ {[%emt 0:00:23]} Kd6 {[%emt 0:00:00]} 55. Rb8 {[%emt 0:00:15] [#]} h3 $1 {[%emt 0:00:00]} 56. Rb3 {[%emt 0:01:50]} (56. Rb6+ Kc5) 56... hxg2 {[%emt 0:00:00]} 57. Kxg2 {[#]} f3+ $1 {[%emt 0:00:00]} 58. Rxf3 {[%emt 0:01:04]} (58. Kf2 Rh1) 58... Rd1 {Weighted Error Value: White=0.62/Black=0.26 (precise)} 0-1

[Event "CZE-ch U14 Open 2023"]
[Site "Teplice"]
[Date "2023.03.13"]
[Round "3.3"]
[White "Stary, Vojtech"]
[Black "Roubal, Matyas"]
[Result "1-0"]
[ECO "D32"]
[WhiteElo "1814"]
[BlackElo "1948"]
[Annotator "TA"]
[PlyCount "81"]
[EventDate "2023.03.09"]
[EventType "swiss"]
[EventCountry "CZE"]
[SourceTitle "playchess.com"]
[Source "ChessBase"]
[SourceQuality "1"]
[TimeControl "40/5400+30:1800+30"]

{[%evp 13,81,0,35,35,44,36,42,35,42,38,39,31,39,20,23,21,29,35,37,31,47,15,18,20,65,64,68,0,7,8,38,6,83,84,83,94,95,86,182,173,162,162,467,171,176,186,393,393,394,326,326,326,326,312,437,440,581,564,621,581,826,804,1311,1256,1327,1306,1276,1054,1021,923]} 1. d4 {[%emt 0:00:02]} d5 {[%emt 0:00:35]} 2. c4 {[%emt 0:00:08]} e6 {[%emt 0:00:06]} 3. cxd5 {[%emt 0:00:05]} exd5 {[%emt 0:00:05]} 4. Nc3 {[%emt 0:00:07]} c5 {[%emt 0:00:07]} 5. Nf3 {[%emt 0:00:17]} Nc6 {[%emt 0:00:13]} 6. Bf4 {[%emt 0:00:22]} Nf6 {[%emt 0:02:40]} 7. e3 {[%emt 0:00:27]} a6 {[%emt 0:03:14]} 8. Be2 {[%emt 0:02:12] D32: Tarrasch Defence: Sidelines and lines without g3.} cxd4 {[%emt 0:01:52]} 9. Nxd4 {[%emt 0:02:03]} Bd6 {[%emt 0:02:51]} 10. Bg5 {[%emt 0:03:25] White is slightly better.} Be7 {[%emt 0:08:06]} 11. O-O {[%emt 0:02:55]} O-O {[%emt 0:01:33]} 12. Bf3 {[%emt 0:07:38]} Be6 {[%emt 0:05:42]} 13. a3 {[%emt 0:13:30]} Rc8 {[%emt 0:03:13]} 14. Rc1 {[%emt 0:01:36]} Ne5 {[%emt 0:01:59] [#]} 15. Be2 $146 {[%emt 0:03:48]} ({Predecessor:} 15. Qb3 Nxf3+ 16. Nxf3 d4 17. Qxb7 dxc3 18. Rxc3 Rxc3 19. bxc3 Qd6 20. Qb4 Qc7 21. Qa4 Qxc3 22. Qxa6 {0-1 Muenz,S (1536)-Horther Schneider,E Bayern-ch (Women) 65th 1994 (8)}) 15... Nc4 {[%emt 0:02:10]} 16. Bxc4 {[%emt 0:06:50]} Rxc4 {[%emt 0:01:21]} 17. Qd2 {[%emt 0:01:35]} b5 {[%emt 0:04:02]} 18. f3 {[%emt 0:11:25]} Nd7 {[%emt 0:04:38]} 19. Bxe7 {[%emt 0:00:34]} Qxe7 {[%emt 0:00:04]} 20. b4 {[%emt 0:10:22]} ({White should play} 20. Nxd5 $14 Bxd5 21. Nf5) 20... Rfc8 {[%emt 0:01:17]} 21. e4 {[%emt 0:07:14]} Qf6 {[%emt 0:08:37]} (21... dxe4 {keeps more tension.} 22. Nxe4 Nf6 23. Rxc4 Bxc4 24. Nf5 Qa7+) 22. exd5 {[%emt 0:06:33]} Nb6 {[%emt 0:10:50]} (22... Qxd4+ 23. Qxd4 Rxd4 24. dxe6 fxe6 25. Nxb5 Rxc1 26. Nxd4 $16) (22... Rxd4 $11 {remains equal.} 23. Ne4 Qe5 24. Rxc8+ Nf8 25. Rxf8+ (25. dxe6 Rxd2 26. Nxd2 Qxe6 $11) 25... Kxf8) 23. dxe6 $16 {[%emt 0:03:28] Black is on the road to losing.} Rxd4 {[%emt 0:02:39]} 24. exf7+ {[%emt 0:00:47]} Kxf7 {[%emt 0:00:33]} 25. Qa2+ {[%emt 0:00:36]} Rdc4 {[%emt 0:01:34]} (25... Qe6 $16) 26. Ne4 $18 {[%emt 0:01:32]} Qd4+ {[%emt 0:00:46]} 27. Kh1 {[%emt 0:00:15] [#] Hoping for Rcd1.} Kf8 $2 {[%emt 0:01:48]} (27... Rd8 {is more resistant.} 28. Rce1 h6) 28. Nc5 $2 {[%emt 0:01:31]} (28. Rcd1 Qe5 29. Nd6) 28... Qd5 {[%emt 0:06:39] aiming for ...Rxc1.} 29. Rcd1 {[%emt 0:02:22]} R4xc5 {[%emt 0:06:39]} (29... Rd4 30. Qa1 Rxd1 31. Rxd1 Qc6) 30. Rxd5 {[%emt 0:01:28]} Rxd5 {[%emt 0:00:01]} 31. Re1 {[%emt 0:00:39] [#] Strongly threatening Qe2.} Re5 {[%emt 0:02:29][%cal Re5e1]} 32. Qf2 {[%emt 0:03:13]} (32. Rxe5 $2 {gets mated.} Rc1+) 32... Rxe1+ {[%emt 0:00:12]} 33. Qxe1 {[%emt 0:00:04][%mdl 4096] Endgame KQ-KRN} Rc6 {[%emt 0:00:21]} (33... Nd5 {is a better defense.} 34. g4 h6) 34. h3 {[%emt 0:00:22][%cal Bh2h3,Bh3h4][%mdl 32] White is clearly winning.} Na4 {[%emt 0:00:46]} 35. Qe4 {[%emt 0:00:30][%csl LRc6,LRh7]} Rg6 {[%emt 0:00:31]} 36. f4 {[%emt 0:00:40]} Kf7 {[%emt 0:00:38]} 37. g4 {[%emt 0:00:11][%cal Bg2g4,Bg4g5][%mdl 32]} Rf6 {[%emt 0:00:54]} 38. g5 {[%emt 0:00:19]} Rg6 {[%emt 0:00:17]} 39. h4 {[%emt 0:00:17]} Nb6 {[%emt 0:00:23]} 40. Qb7+ {[%emt 0:00:25]} Kf8 {[%emt 0:00:05]} 41. Qxa6 {[%emt 0:30:27] Weighted Error Value: White=0.22 (precise) /Black=0.47} 1-0